bitfinex-derivatives/quotes_ETHF0:USTF0_20241008
["timestamp","ask_amount","ask_price","bid_price","bid_amount"]
[1728397481818,0.41152,2430.9,2430.6,0.80597225]
[1728397482024,1.02861,2431.3,2430.6,0.4164]
[1728397482221,4.35,2430.8,2430.5,0.4207]
[1728397482523,4.35,2430.8,2430.1,3.2078]
[1728397482524,4.23667,2430.7,2430.2,0.83391]
[1728397482724,4.23667,2430.7,2430.3,0.41161]
[1728397482725,0.41159,2430.5,2430.3,0.41161]
[1728397483026,0.41159,2430.4,2430.2,0.4223]
[1728397483323,0.41159,2430.5,2430.3,0.41161]
[1728397483524,0.41158,2430.5,2430.4,0.41159]
[1728397483724,4.23667,2430.7,2430.2,0.4223]
[1728397483725,3.2078,2430.7,2430.2,0.4223]
[1728397483924,3.2078,2430.7,2430.4,0.41159]
[1728397484221,0.41157,2430.6,2430.4,0.41159]
[1728397484623,3.2078,2430.7,2430.2,0.4223]
[1728397485026,0.41154,2430.8,2430.6,0.41155]
[1728397485229,4.23656,2431.0,2430.6,0.41155]
[1728397485427,0.41154,2430.7,2430.6,0.41155]
[1728397485825,0.41158,2430.5,2430.3,0.41161]
[1728397486123,0.41154,2430.7,2430.6,0.41156]
[1728397486321,0.41154,2430.7,2430.2,1.45136]
[1728397486322,4.23654,2431.0,2430.2,0.4223]
[1728397486523,0.41158,2430.6,2430.2,0.4223]
[1728397486731,0.41158,2430.6,2430.5,0.41158]
[1728397486929,0.41158,2430.5,2430.4,0.41158]
[1728397487129,0.4116,2430.4,2430.3,0.4116]
[1728397487521,3.2078,2430.7,2430.2,0.4223]
[1728397487720,0.41163,2430.2,2430.1,0.41163]
[1728397487924,1.02895,2430.5,2429.6,4.23713]
[1728397487925,0.41165,2430.1,2430.0,0.41165]
[1728397488130,0.41162,2430.3,2430.2,0.41162]
[1728397488324,4.63608,2430.7,2429.8,0.3958]
[1728397488525,0.41163,2430.3,2429.8,0.3958]
[1728397488726,4.63608,2430.7,2429.8,0.3958]
[1728397488932,0.4116,2430.4,2430.3,0.4116]
[1728397489129,3.2078,2430.7,2430.0,1.02916]
[1728397489328,3.2078,2431.0,2430.8,0.41151]
[1728397489641,0.41155,2430.7,2430.6,0.41156]
[1728397490024,0.41152,2430.9,2430.2,4.23686]
[1728397490224,0.41152,2430.9,2430.7,0.41153]
[1728397490429,0.41152,2430.9,2430.8,0.41153]
[1728397490734,0.41151,2430.9,2430.5,0.4061]
[1728397490938,3.2078,2431.0,2430.5,0.4061]
[1728397491134,0.41153,2430.9,2430.7,0.41153]
[1728397491327,3.2078,2431.0,2430.5,0.4061]
[1728397491635,0.41152,2430.9,2430.6,0.41156]
[1728397491829,3.2078,2431.0,2430.5,0.4061]
[1728397492132,3.2078,2431.0,2430.9,0.41151]
[1728397492322,4.35,2431.4,2430.6,1.02891]
[1728397492629,4.35,2431.4,2431.3,0.41143]
[1728397492630,0.41143,2431.4,2431.3,0.41143]
[1728397492834,0.41144,2431.3,2431.2,0.41145]
[1728397493329,4.1128,2431.3,2431.2,0.41145]
[1728397493534,4.52424,2431.3,2431.2,0.41145]
[1728397494034,4.1128,2431.3,2431.2,0.41145]
[1728397494428,4.52424,2431.3,2431.2,0.41145]
[1728397494632,4.52424,2431.3,2431.0,0.4134]
[1728397494934,0.41148,2431.1,2431.0,0.82488]
[1728397495127,0.41148,2431.1,2431.0,0.4134]
[1728397495327,5.37857,2431.4,2430.7,0.4168]
[1728397495529,0.41151,2431.0,2430.9,0.41151]
[1728397495835,4.23647,2431.2,2430.8,0.41152]
[1728397495836,0.41152,2430.9,2430.8,0.41152]
[1728397496222,0.41148,2431.1,2430.9,0.4115]
[1728397496426,3.2078,2431.2,2430.7,0.4168]
[1728397496627,0.41152,2430.9,2430.8,0.41152]
[1728397496830,0.4115,2431.0,2430.9,0.4115]
[1728397497136,4.23647,2431.2,2430.8,0.41153]
[1728397497337,0.41151,2430.9,2430.8,0.41153]
[1728397498034,0.41157,2430.6,2430.5,0.41157]
[1728397498338,3.2078,2430.9,2430.7,0.41153]
[1728397498532,3.2078,2430.9,2430.4,1.02899]
[1728397498533,3.61932,2430.9,2430.8,0.41153]
[1728397498837,0.41149,2431.1,2430.6,1.02891]
[1728397499039,0.41149,2431.1,2431.0,0.41149]
[1728397499434,3.2078,2431.2,2431.1,0.41148]
[1728397499932,0.41148,2431.1,2431.0,0.41149]
[1728397500239,0.41148,2431.1,2430.9,0.41149]
[1728397500436,3.2078,2431.2,2430.5,1.02895]
[1728397500636,0.41151,2431.0,2430.6,0.41156]
[1728397500832,3.2078,2431.2,2430.5,4.23675]
[1728397501033,3.2078,2431.2,2431.1,0.41148]
[1728397501234,3.2078,2431.2,2431.0,0.41148]
[1728397501235,0.41148,2431.1,2431.0,0.41148]
[1728397501439,3.61927,2431.2,2431.1,0.41148]
[1728397501739,0.4115,2431.0,2430.9,0.4115]
[1728397501941,3.2078,2431.2,2430.5,3.2078]
[1728397502138,1.02875,2431.0,2430.8,0.41153]
[1728397502333,0.41155,2430.7,2430.6,0.41155]
[1728397502541,0.41154,2430.8,2430.7,0.41154]
[1728397502741,0.41159,2430.4,2430.3,0.3979]
[1728397504638,0.41159,2430.4,2430.2,3.6231]
[1728397504639,0.41161,2430.3,2430.2,0.4153]
[1728397504835,0.41164,2430.2,2430.1,0.41164]
[1728397505137,3.2078,2430.5,2429.9,0.7925]
[1728397505338,3.2078,2430.5,2429.9,1.82169]
[1728397505339,0.41161,2430.4,2429.9,1.82169]
[1728397505637,3.2078,2430.5,2429.9,0.7925]
[1728397505838,0.41162,2430.3,2430.2,0.41162]
[1728397506643,1.02889,2430.7,2430.0,1.02916]
[1728397506943,7.9609,2430.8,2430.1,1.02912]
[1728397507142,3.2078,2430.8,2430.7,0.41154]
[1728397507334,3.2078,2430.8,2429.9,2.85091]
[1728397507335,0.4115,2431.0,2430.9,0.41149]
[1728397507636,3.2078,2431.1,2430.5,0.7832]
[1728397507637,4.23651,2431.1,2430.5,0.7832]
[1728397507833,3.2078,2431.1,2430.5,1.1692]
[1728397508041,0.4115,2431.0,2430.9,0.4115]
[1728397508441,3.2078,2431.5,2430.6,3.2078]
[1728397508641,0.41138,2431.7,2431.1,1.02869]
[1728397508846,3.2078,2431.8,2431.3,4.23641]
[1728397509145,1.41795,2432.2,2431.7,0.41136]
[1728397509146,0.41135,2431.9,2431.7,0.41136]
[1728397509353,3.61911,2432.1,2431.9,0.41132]
[1728397509536,0.4114,2431.6,2431.2,1.1692]
[1728397509837,8.462,2432.0,2431.3,0.41143]
[1728397509838,0.41141,2431.5,2431.3,0.41143]
[1728397510042,3.2078,2431.8,2431.2,1.1692]
[1728397510234,0.41138,2431.7,2431.5,0.4114]
[1728397510643,3.2078,2432.1,2431.6,4.1128]
[1728397510839,3.2078,2432.1,2431.3,3.2078]
[1728397511144,3.2078,2432.1,2431.9,0.41134]
[1728397511145,3.61912,2432.1,2431.9,0.41134]
[1728397511446,7.5578,2432.6,2431.6,3.2078]
[1728397511645,0.41129,2432.2,2432.0,0.41131]
[1728397511840,1.0281,2432.5,2431.8,0.4071]
[1728397512041,0.41127,2432.4,2432.2,0.41128]
[1728397512236,0.4113,2432.2,2432.0,0.41131]
[1728397512637,0.41135,2431.9,2431.7,0.41136]
[1728397512840,0.41133,2432.0,2431.5,1.43994]
[1728397513040,0.41133,2432.0,2431.8,0.41134]
[1728397513447,0.41134,2432.0,2431.8,0.41135]
[1728397513743,0.41134,2432.0,2431.5,1.02853]
[1728397513944,0.41127,2432.4,2431.6,7.3198]
[1728397514143,0.41127,2432.4,2432.3,0.41127]
[1728397514345,4.23589,2432.6,2431.8,0.41136]
[1728397514346,0.41131,2432.1,2431.8,0.41136]
[1728397514549,0.41131,2432.1,2431.9,0.41132]
[1728397514739,0.4113,2432.2,2431.7,1.02843]
[1728397514945,0.4113,2432.2,2431.8,0.4098]
[1728397515148,1.02818,2432.4,2432.0,0.41132]
[1728397515351,0.4113,2432.2,2432.1,0.41131]
[1728397515650,1.02818,2432.4,2432.0,0.41131]
[1728397515852,0.41131,2432.1,2432.0,0.41131]
[1728397516450,0.4113,2432.2,2432.1,0.41131]
[1728397517243,0.4113,2432.2,2432.1,0.4113]
[1728397517244,0.41129,2432.2,2432.1,0.4113]
[1728397517446,0.41126,2432.4,2432.3,0.41127]
[1728397517851,1.85099,2432.8,2432.0,1.02832]
[1728397518046,0.41125,2432.5,2432.3,0.41126]
[1728397518349,0.41125,2432.5,2432.0,1.02832]
[1728397518552,0.41126,2432.4,2432.0,1.02832]
[1728397518748,0.41126,2432.4,2432.2,0.41127]
[1728397518955,0.41132,2432.1,2432.0,0.41131]
[1728397519155,0.4113,2432.2,2432.0,0.41131]
[1728397519545,0.4113,2432.2,2432.1,0.41131]
[1728397519955,0.4113,2432.2,2431.9,0.8021]
[1728397520159,0.41132,2432.1,2432.0,0.41132]
[1728397520458,0.4113,2432.2,2432.0,0.41132]
[1728397520661,0.4113,2432.2,2432.1,0.41131]
[1728397521153,0.41127,2432.4,2432.3,0.41127]
[1728397521349,1.02815,2432.4,2431.9,0.8021]
[1728397521854,0.41129,2432.3,2432.1,0.4113]
[1728397522048,1.02815,2432.4,2431.9,0.8021]
[1728397522244,0.41129,2432.2,2432.1,0.41129]
[1728397522660,3.2078,2432.6,2431.9,0.8021]
[1728397522855,0.4128,2432.8,2431.9,0.8021]
[1728397523055,0.41129,2432.2,2432.1,0.4113]
[1728397523350,1.02814,2432.5,2431.9,0.8021]
[1728397523547,0.41129,2432.3,2432.2,0.41129]
[1728397525551,0.41126,2432.4,2432.3,0.41126]
[1728397525755,3.2078,2432.6,2432.0,1.02832]
[1728397525957,3.61902,2432.6,2432.5,0.41124]
[1728397526756,0.41124,2432.5,2432.4,0.41124]
[1728397526963,1.02799,2432.8,2432.2,1.02822]
[1728397527259,0.41127,2432.4,2432.3,0.41127]
[1728397527762,0.41124,2432.5,2432.4,0.41125]
[1728397527951,0.41123,2432.6,2432.5,0.41124]
[1728397528446,4.23573,2433.0,2432.4,0.407]
[1728397528447,4.55794,2432.9,2432.4,0.407]
[1728397528650,0.41122,2432.6,2432.5,1.26143]
[1728397529164,3.53,2432.9,2432.6,0.41122]
[1728397529165,0.41122,2432.7,2432.6,0.41122]
[1728397529660,0.41122,2432.7,2432.5,0.8502]
[1728397529661,0.41122,2432.6,2432.5,1.26143]
[1728397529960,0.41121,2432.7,2432.6,0.41121]
[1728397530460,0.41124,2432.5,2432.4,0.41124]
[1728397530653,0.41124,2432.5,2432.4,0.83414]
[1728397531158,0.41127,2432.3,2431.8,3.2078]
[1728397531356,0.41132,2432.0,2431.9,0.4218]
[1728397531665,1.02827,2432.2,2431.8,0.4229]
[1728397531666,0.41134,2431.9,2431.8,0.4229]
[1728397532357,0.41131,2432.1,2432.0,0.41131]
[1728397532566,0.41129,2432.3,2432.2,0.41128]
[1728397532765,0.41129,2432.2,2432.1,0.4218]
[1728397532961,0.41131,2432.1,2432.0,0.41132]
[1728397533465,0.41126,2432.4,2432.3,0.41126]
[1728397534258,0.41125,2432.5,2432.4,0.41126]
[1728397534453,0.41126,2432.4,2432.3,0.41126]
[1728397535064,0.41125,2432.5,2432.4,0.41125]
[1728397535261,3.2078,2432.7,2432.2,0.4068]
[1728397535469,3.61901,2432.7,2432.6,0.41122]
[1728397536063,0.41122,2432.6,2432.5,0.41123]
[1728397536565,3.2078,2432.7,2432.4,0.82454]
[1728397536566,0.41124,2432.5,2432.4,0.82454]
[1728397536962,4.23583,2432.7,2432.2,0.81808]
[1728397536963,0.41127,2432.3,2432.2,0.81808]
[1728397537260,0.41126,2432.4,2432.3,0.41126]
[1728397537467,0.41125,2432.5,2432.4,0.41125]
[1728397537657,1.0281,2432.5,2432.2,0.4068]
[1728397537862,3.6174,2432.7,2432.3,0.41127]
[1728397537863,0.41126,2432.4,2432.3,0.41127]
[1728397538165,3.6174,2432.7,2432.2,0.81808]
[1728397538166,0.41127,2432.3,2432.2,0.81808]
[1728397538365,0.41127,2432.4,2432.3,0.41127]
[1728397538561,0.41127,2432.3,2432.2,0.81808]
[1728397538768,0.41126,2432.4,2432.3,0.41127]
[1728397539164,0.41127,2432.3,2432.2,0.81808]
[1728397539364,1.02813,2432.5,2432.2,0.4068]
[1728397539667,0.41129,2432.2,2432.1,0.41129]
[1728397540565,0.4113,2432.2,2432.1,0.4113]
[1728397540863,3.6174,2432.7,2432.1,4.1112]
[1728397541071,0.41124,2432.6,2432.4,0.41124]
[1728397541562,0.41122,2432.6,2432.4,0.41124]
[1728397541761,0.41124,2432.5,2432.4,0.41124]
[1728397542365,0.3945,2432.8,2432.1,4.23607]
[1728397542567,0.41126,2432.4,2432.3,0.41126]
[1728397542765,1.02806,2432.6,2432.1,3.2078]
[1728397542962,0.41127,2432.4,2432.3,0.41127]
[1728397543168,1.02812,2432.5,2431.9,1.44194]
[1728397543371,1.02812,2432.5,2432.1,0.4113]
[1728397543372,0.4113,2432.2,2432.1,0.4113]
[1728397544072,0.41128,2432.3,2432.2,0.41128]
[1728397544861,0.41127,2432.4,2432.3,0.41127]
[1728397545267,3.2078,2432.6,2432.0,1.02831]
[1728397545468,0.41124,2432.5,2432.4,0.41124]
[1728397545659,0.41126,2432.4,2432.3,0.41126]
[1728397545861,0.41125,2432.5,2432.4,0.41125]
[1728397546362,0.41123,2432.6,2432.5,0.41123]
[1728397546563,4.5447,2433.2,2432.5,0.41123]
[1728397546564,3.2078,2433.3,2432.5,3.2078]
[1728397546767,0.425,2433.4,2433.3,0.4111]
[1728397547068,1.02757,2433.8,2432.9,3.2078]
[1728397547274,0.41113,2433.2,2433.0,0.41115]
[1728397547574,0.41113,2433.2,2433.1,0.41114]
[1728397547762,0.41113,2433.2,2433.0,0.41114]
[1728397547966,1.02774,2433.4,2433.0,0.41114]
[1728397548166,3.6328,2433.6,2432.8,1.41716]
[1728397548468,3.6328,2433.6,2433.1,0.41113]
[1728397548469,0.41111,2433.3,2433.1,0.41113]
[1728397548672,0.41111,2433.3,2433.2,0.41112]
[1728397548867,3.6328,2433.6,2433.3,0.4111]
[1728397549373,0.41107,2433.5,2433.3,0.4111]
[1728397549774,0.4111,2433.4,2432.9,4.23573]
[1728397549967,3.6328,2433.6,2432.9,4.23573]
[1728397550167,0.41109,2433.4,2433.3,0.41109]
[1728397550468,3.6328,2433.6,2433.1,1.02785]
[1728397550661,3.6328,2433.6,2433.2,0.4102]
[1728397550868,4.04386,2433.6,2433.5,0.41107]
[1728397551069,4.04386,2433.6,2433.2,0.4102]
[1728397551070,0.41109,2433.4,2433.3,0.41109]
[1728397551266,1.02769,2433.5,2432.9,3.2078]
[1728397551471,0.41115,2433.0,2432.9,3.2078]
[1728397551674,0.41114,2433.1,2432.5,0.8029]
[1728397551870,0.41121,2432.7,2432.6,0.41121]
[1728397552173,0.4112,2432.8,2432.7,0.41119]
[1728397552374,0.4001,2433.0,2432.5,0.8029]
[1728397552571,0.41117,2432.9,2432.8,0.41118]
[1728397552769,0.4001,2433.0,2432.5,1.831]
[1728397553072,0.41111,2433.3,2433.1,0.41112]
[1728397553273,1.43881,2433.4,2433.0,0.41114]
[1728397553470,1.02777,2433.3,2433.0,0.41114]
[1728397553669,1.02781,2433.2,2432.8,0.3928]
[1728397553876,0.41116,2433.0,2432.9,0.41117]
[1728397554072,0.41114,2433.1,2433.0,0.41115]
[1728397554273,0.41114,2433.1,2432.9,0.41116]
[1728397554480,0.41114,2433.1,2433.0,0.41115]
[1728397554673,0.41116,2433.0,2432.9,0.41117]
[1728397554971,0.41116,2433.0,2432.8,0.3928]
[1728397554972,1.02781,2433.2,2432.8,0.3928]
[1728397555175,0.41117,2432.9,2432.8,0.80398]
[1728397555874,0.41122,2432.6,2432.5,0.82143]
[1728397556075,0.41125,2432.5,2432.3,0.41126]
[1728397556269,0.41123,2432.6,2432.5,0.41123]
[1728397556973,0.41125,2432.5,2432.4,0.41126]
[1728397557179,0.41128,2432.3,2432.2,0.41129]
[1728397557473,1.02802,2432.7,2432.3,0.41127]
[1728397557474,0.41127,2432.4,2432.3,0.41127]
[1728397559070,0.41128,2432.3,2432.2,0.41128]
[1728397559470,0.41129,2432.2,2432.1,0.7853]
[1728397559772,0.41129,2432.2,2431.7,0.4216]
[1728397559773,4.1112,2432.2,2431.7,0.4216]
[1728397559968,0.41134,2432.0,2431.8,0.41136]
[1728397560373,0.41134,2432.0,2431.7,0.4216]
[1728397560676,1.02815,2432.4,2431.7,0.4216]
[1728397560981,0.41136,2431.8,2431.7,0.83297]
[1728397561479,1.02823,2432.2,2431.6,0.7906]
[1728397561777,0.4113,2432.2,2432.1,0.4113]
[1728397561985,0.41128,2432.3,2431.8,1.0284]
[1728397562173,0.41132,2432.1,2431.6,2.23886]
[1728397562477,0.41132,2432.1,2432.0,0.41132]
[1728397562682,0.4113,2432.2,2431.7,1.02844]
[1728397562876,0.4113,2432.2,2431.8,0.41136]
[1728397563071,0.3966,2432.7,2431.8,3.2078]
[1728397563379,0.3966,2432.7,2432.4,0.41124]
[1728397563380,0.41124,2432.5,2432.4,0.41124]
[1728397563584,1.42463,2432.7,2431.6,1.43075]
[1728397563585,0.3966,2432.7,2431.6,1.43075]
[1728397563883,0.4113,2432.2,2431.8,0.4208]
[1728397564474,0.4113,2432.2,2432.1,0.41131]
[1728397564682,0.41129,2432.2,2432.1,0.41131]
[1728397565286,3.59692463,2432.7,2431.8,1.44919]
[1728397565485,3.59692463,2432.7,2431.8,4.65699]
[1728397565486,1.02808,2432.6,2431.8,4.65699]
[1728397565674,0.41125,2432.5,2432.1,0.41131]
[1728397565880,0.41123,2432.6,2432.0,1.02831]
[1728397566091,6.80792463,2432.8,2432.1,0.3965]
[1728397566381,0.41126,2432.4,2432.3,0.41127]
[1728397566782,0.41125,2432.5,2432.4,0.41126]
[1728397567091,0.41124,2432.5,2432.4,0.41124]
[1728397567782,0.41124,2432.5,2432.2,0.4231]
[1728397567783,0.4112,2432.7,2432.2,0.4231]
[1728397567974,0.41124,2432.5,2432.4,0.41125]
[1728397568483,4.63558,2432.8,2432.2,0.4231]
[1728397568784,0.41129,2432.2,2432.1,0.3965]
[1728397568984,3.2078,2432.5,2431.8,0.4208]
[1728397569185,3.2078,2432.5,2431.6,0.4269]
[1728397569186,3.2078,2432.1,2431.6,0.4269]
[1728397569485,0.41137,2431.7,2431.6,0.4269]
[1728397569684,1.02846,2431.7,2431.3,0.8332]
[1728397569987,5.37838,2431.9,2430.9,1.41870644]
[1728397569988,0.41148,2431.1,2430.9,0.4115]
[1728397570285,0.4115,2431.0,2430.8,0.41152]
[1728397571282,3.53,2431.1,2430.6,0.4207]
[1728397571480,3.94148,2431.1,2430.9,0.4115]
[1728397571880,6.7378,2431.5,2430.7,3.53]
[1728397572080,0.41143,2431.4,2431.2,0.41145]
[1728397572584,5.14139,2431.4,2430.6,3.6285]
[1728397572885,0.41147,2431.2,2431.0,0.41149]
[1728397573083,1.02864,2431.3,2430.6,3.6285]
[1728397573477,0.41154,2430.8,2430.6,0.41155]
[1728397573684,0.41154,2430.7,2430.5,0.83846]
[1728397573880,1.02876,2431.0,2430.2,3.6198]
[1728397574086,0.41157,2430.6,2430.2,3.6198]
[1728397574291,1.02888,2430.7,2430.2,0.412]
[1728397574481,7.5578,2430.9,2430.2,0.82362]
[1728397574482,0.4116,2430.4,2430.2,0.82362]
[1728397575390,0.41161,2430.4,2430.2,0.82362]
[1728397575582,0.41161,2430.3,2430.2,0.82362]
[1728397575780,0.41161,2430.3,2430.2,0.41162]
[1728397575982,0.4116,2430.4,2430.2,0.41162]
[1728397576182,0.41158,2430.5,2430.4,0.41159]
[1728397576390,0.4116,2430.4,2430.2,0.41161]
[1728397576689,0.41159,2430.5,2430.3,0.41161]
[1728397576882,0.41159,2430.5,2430.4,0.41159]
[1728397577075,0.41159,2430.5,2430.1,0.4162]
[1728397577277,0.41159,2430.5,2430.4,0.41159]
[1728397577582,1.02882,2430.8,2430.1,1.44531]
[1728397577784,3.2078,2430.9,2430.3,3.2078]
[1728397577988,3.2078,2430.9,2430.8,0.41153]
[1728397578778,3.61932,2430.9,2430.8,0.41153]
[1728397579490,3.2078,2430.9,2430.8,0.41153]
[1728397580176,3.2078,2431.5,2430.8,10.52513]
[1728397580383,3.2078,2431.5,2431.3,0.41143]
[1728397580683,0.4117,2431.6,2431.4,0.41142]
[1728397580880,0.41136,2431.8,2431.3,3.2078]
[1728397581084,4.35,2432.1,2431.4,0.3972]
[1728397581286,1.02836,2431.9,2431.4,0.3972]
[1728397581483,0.41137,2431.8,2431.6,0.41138]
[1728397581679,0.41137,2431.8,2431.4,0.3972]
[1728397581680,0.41134,2431.9,2431.4,1.42576]
[1728397581881,0.41138,2431.7,2431.6,0.41139]
[1728397582081,0.41135,2431.9,2431.7,0.41136]
[1728397582784,1.02844,2431.7,2431.0,0.37706157]
[1728397582986,0.41145,2431.3,2431.1,0.41148]
[1728397583192,0.41141,2431.6,2431.4,0.41142]
[1728397583585,0.41141,2431.6,2431.5,0.41141]
[1728397583888,0.41137,2431.8,2431.6,0.41138]
[1728397584094,0.41137,2431.8,2431.7,0.41137]
[1728397584290,3.2078,2431.9,2431.3,1.0286]
[1728397584291,3.2078,2431.9,2431.8,0.41136]
[1728397584495,0.41133,2432.0,2431.9,0.41134]
[1728397585285,3.6049,2432.1,2431.6,0.8498]
[1728397585487,0.41135,2431.9,2431.8,0.41136]
[1728397585879,0.41136,2431.8,2431.7,0.41137]
[1728397586084,1.02832,2432.0,2431.6,0.8498]
[1728397586282,0.41137,2431.7,2431.6,1.26118]
[1728397586590,0.41137,2431.8,2431.7,0.41137]
[1728397587083,0.41137,2431.8,2431.6,0.4214]
[1728397587084,0.41135,2431.9,2431.8,0.41135]
[1728397587285,4.23611,2432.1,2431.6,0.4214]
[1728397587596,0.41137,2431.7,2431.6,0.83278]
[1728397587885,0.41136,2431.8,2431.7,0.41137]
[1728397588280,0.41135,2431.9,2431.7,0.41137]
[1728397588687,1.02834,2432.0,2431.6,0.4214]
[1728397588688,0.41133,2432.0,2431.6,0.4214]
[1728397588984,0.41133,2432.0,2431.8,0.41135]
[1728397589183,1.02826,2432.2,2431.6,0.4214]
[1728397589383,0.41136,2431.9,2431.7,0.41136]
[1728397589583,0.41136,2431.9,2431.8,0.41136]
[1728397589988,3.2078,2432.1,2431.6,0.4214]
[1728397590184,0.41137,2431.7,2431.6,0.4214]
[1728397590394,3.2078,2431.7,2431.0,3.2078]
[1728397590583,1.02848,2431.6,2431.3,0.41143]
[1728397590786,0.41142,2431.4,2431.3,0.41143]
[1728397590982,1.02848,2431.6,2431.1,0.8352]
[1728397591193,1.44039,2431.9,2431.5,0.4114]
[1728397591194,1.0284,2431.8,2431.5,0.4114]
[1728397591389,1.0284,2431.8,2431.1,1.86389]
[1728397591586,0.412,2431.9,2431.1,1.86389]
[1728397591785,0.4114,2431.6,2431.4,0.41141]
[1728397591986,0.412,2431.9,2431.1,1.86389]
[1728397592192,0.41139,2431.6,2431.5,0.4114]
[1728397592788,0.4114,2431.6,2431.5,0.4114]
[1728397593094,0.41133,2432.0,2431.9,0.41134]
[1728397593290,0.41133,2432.0,2431.8,0.41134]
[1728397593684,0.41135,2431.9,2431.5,0.4152]
[1728397593888,0.41137,2431.8,2431.6,0.41138]
[1728397594090,3.2078,2432.0,2431.3,3.2078]
[1728397594285,0.41143,2431.4,2431.3,0.41144]
[1728397594685,3.2078,2431.7,2431.1,0.8352]
[1728397594887,0.41143,2431.4,2431.3,0.41144]
[1728397595293,0.41142,2431.5,2431.2,0.41146]
[1728397595493,3.2078,2431.6,2431.1,0.8352]
[1728397595688,0.41146,2431.2,2431.1,0.8352]
[1728397596028,3.2078,2431.2,2430.2,3.2078]
[1728397596296,0.41159,2430.5,2430.3,1.6122]
[1728397596496,3.2078,2430.8,2430.3,1.2006]
[1728397596793,0.41154,2430.8,2430.6,0.41155]
[1728397597396,0.41153,2430.8,2430.6,0.41155]
[1728397597593,0.3873,2431.0,2430.3,1.2006]
[1728397597789,0.41152,2430.9,2430.7,0.41154]
[1728397597996,8.58651,2431.1,2430.7,0.41154]
[1728397597997,4.23651,2431.1,2430.7,0.41154]
[1728397598186,3.2078,2430.8,2430.3,1.2006]
[1728397598391,0.41157,2430.6,2430.4,0.41159]
[1728397599095,0.41155,2430.7,2430.5,0.41157]
[1728397599286,0.41154,2430.8,2430.6,0.41156]
[1728397599491,0.41153,2430.8,2430.6,0.41155]
[1728397599704,0.41155,2430.7,2430.5,0.41157]
[1728397599999,3.2078,2430.8,2430.3,1.2006]
[1728397600199,3.2078,2430.8,2430.4,0.41159]
[1728397600200,0.41157,2430.6,2430.4,0.41159]
[1728397600396,4.35,2430.5,2429.8,3.2078]
[1728397600598,1.02908,2430.2,2429.8,0.4217]
[1728397600899,1.02908,2430.2,2429.3,1.45612]
[1728397600900,1.02925,2429.8,2429.3,0.83847]
[1728397601100,1.02925,2429.8,2429.3,0.4267]
[1728397601101,0.41176,2429.5,2429.3,0.4267]
[1728397601299,3.2078,2429.5,2429.0,0.4217]
[1728397601594,0.41179,2429.3,2429.0,0.83353]
[1728397601891,3.61955,2429.5,2429.2,0.41178]
[1728397602089,3.61955,2429.5,2429.1,0.41181]
[1728397602090,3.2078,2429.5,2429.1,0.41181]
[1728397602305,3.2078,2429.5,2429.0,0.4217]
[1728397602306,1.44118,2429.4,2429.0,0.4217]
[1728397602596,0.41182,2429.1,2428.9,0.41185]
[1728397602792,3.2078,2429.2,2428.7,0.41187]
[1728397602999,3.2078,2429.2,2428.2,1.02989]
[1728397603000,0.41187,2428.8,2428.5,0.41191]
[1728397603190,0.41186,2428.9,2428.5,0.41191]
[1728397603492,3.2078,2429.2,2428.2,3.6295]
[1728397603700,0.41184,2429.0,2428.7,0.41188]
[1728397604200,0.41181,2429.2,2428.9,0.41184]
[1728397604391,4.35,2429.3,2428.5,3.2078]
[1728397604392,0.41182,2429.1,2428.5,3.2078]
[1728397604699,0.41182,2429.1,2428.8,0.41186]
[1728397604895,3.2078,2429.2,2428.5,3.2078]
[1728397605091,3.61961,2429.2,2428.3,1.02988]
[1728397605292,3.61961,2429.2,2428.9,0.41184]
[1728397605599,3.2078,2429.2,2428.5,3.2078]
[1728397605985,3.61961,2429.2,2428.9,0.41184]
[1728397606195,0.41181,2429.2,2428.9,0.41184]
[1728397606386,0.41181,2429.2,2429.0,0.41183]
[1728397606591,4.35,2429.3,2428.5,4.23757]
[1728397606795,0.4118,2429.2,2428.9,0.41184]
[1728397606990,4.35,2429.3,2428.9,0.41184]
[1728397607197,4.35,2429.3,2428.9,0.41185]
[1728397607198,0.4118,2429.2,2428.9,0.41185]
[1728397607394,4.35,2429.3,2428.9,0.41185]
[1728397607594,0.41181,2429.2,2428.9,0.41185]
[1728397607798,3.2078,2429.2,2428.5,3.2078]
[1728397608301,0.41185,2429.0,2428.7,0.41187]
[1728397608490,0.41185,2429.0,2428.2,0.4217]
[1728397608491,0.41189,2428.7,2428.2,0.4217]
[1728397608692,3.2078,2428.9,2428.2,0.4217]
[1728397608897,3.2078,2428.9,2428.5,0.41191]
[1728397609090,0.41189,2428.7,2428.5,0.41191]
[1728397609299,0.4119,2428.6,2428.4,0.41193]
[1728397609502,0.41189,2428.7,2428.5,0.41192]
[1728397610003,3.2078,2428.9,2428.0,1.40866045]
[1728397610205,3.2078,2428.9,2428.0,0.37867045]
[1728397610503,3.61966,2428.9,2428.6,0.41189]
[1728397610694,0.41187,2428.8,2428.6,0.41189]
[1728397611101,0.41187,2428.8,2428.2,3.2078]
[1728397611399,0.41188,2428.8,2428.5,0.4119]
[1728397611600,0.41188,2428.8,2428.6,0.41189]
[1728397611802,4.35,2429.0,2428.2,3.2078]
[1728397612006,0.41187,2428.8,2428.2,3.2078]
[1728397612304,0.41187,2428.8,2428.3,0.41195]